[Event "Masters Tournament (MTO)"]
[Site "Biel, Switzerland"]
[Date "2026.07.21"]
[Round "8.42"]
[White "Carey, Michael"]
[Black "Damen, Josephine"]
[Result "1/2-1/2"]
[TimeControl "100+30+30sec/move"]
[WhiteTitle "-"]
[BlackTitle "-"]
[WhiteFideId "30923760"]
[BlackFideId "1074369"]
[WhiteElo "1946"]
[BlackElo "1971"]

1. b3 {[%clk 01:40:55]} {[%emt 00:00:04]} Nf6 {[%clk 01:40:40]} {[%emt
00:00:20]} 2. Bb2 {[%clk 01:41:19]} {[%emt 00:00:06]} g6 {[%clk 01:39:49]}
{[%emt 00:01:21]} 3. e4 {[%clk 01:41:44]} {[%emt 00:00:04]} d6 {[%clk
01:40:09]} {[%emt 00:00:10]} 4. Nc3 {[%clk 01:42:08]} {[%emt 00:00:06]} Bg7
{[%clk 01:39:07]} {[%emt 00:01:33]} 5. d4 {[%clk 01:42:29]} {[%emt 00:00:09]}
O-O {[%clk 01:38:36]} {[%emt 00:01:01]} 6. Qd2 {[%clk 01:42:53]} {[%emt
00:00:06]} Nc6 {[%clk 01:28:52]} {[%emt 00:10:14]} 7. d5 {[%clk 01:41:22]}
{[%emt 00:02:01]} Nb8 {[%clk 01:29:19]} {[%emt 00:00:04]} 8. O-O-O {[%clk
01:38:43]} {[%emt 00:03:08]} Nbd7 {[%clk 01:28:31]} {[%emt 00:01:19]} 9. Be2
{[%clk 01:33:46]} {[%emt 00:05:27]} Nc5 {[%clk 01:26:09]} {[%emt 00:02:51]} 10.
f3 {[%clk 01:27:54]} {[%emt 00:06:22]} a5 {[%clk 01:13:52]} {[%emt 00:12:47]}
11. a4 {[%clk 01:25:35]} {[%emt 00:02:49]} e5 {[%clk 01:13:48]} {[%emt
00:00:35]} 12. g4 {[%clk 01:21:54]} {[%emt 00:04:10]} Qe7 {[%clk 01:11:40]}
{[%emt 00:02:37]} 13. Kb1 {[%clk 01:17:52]} {[%emt 00:04:32]} Rd8 {[%clk
01:09:46]} {[%emt 00:02:25]} 14. h4 {[%clk 01:10:14]} {[%emt 00:08:08]} h5
{[%clk 01:09:26]} {[%emt 00:00:50]} 15. g5 {[%clk 01:05:30]} {[%emt 00:05:13]}
Nfd7 {[%clk 01:05:07]} {[%emt 00:04:50]} 16. Ba3 {[%clk 01:00:50]} {[%emt
00:05:10]} Nb8 {[%clk 00:59:29]} {[%emt 00:06:08]} 17. Nh3 {[%clk 00:54:09]}
{[%emt 00:07:11]} Nba6 {[%clk 00:51:57]} {[%emt 00:08:03]} 18. Nf2 {[%clk
00:53:30]} {[%emt 00:01:07]} Nb4 {[%clk 00:37:46]} {[%emt 00:14:42]} 19. Bxb4
{[%clk 00:51:23]} {[%emt 00:02:38]} axb4 {[%clk 00:38:08]} {[%emt 00:00:07]} 20.
Na2 {[%clk 00:51:27]} {[%emt 00:00:26]} Bd7 {[%clk 00:31:08]} {[%emt 00:07:30]}
21. Nxb4 {[%clk 00:46:57]} {[%emt 00:05:00]} Qe8 {[%clk 00:26:32]} {[%emt
00:05:06]} 22. Bc4 {[%clk 00:37:23]} {[%emt 00:10:03]} b5 {[%clk 00:19:51]}
{[%emt 00:07:12]} 23. axb5 {[%clk 00:35:53]} {[%emt 00:02:00]} Bxb5 {[%clk
00:20:10]} {[%emt 00:00:11]} 24. Qc3 {[%clk 00:32:41]} {[%emt 00:03:42]} Ra3
{[%clk 00:17:13]} {[%emt 00:03:27]} 25. Kc1 {[%clk 00:23:37]} {[%emt 00:09:35]}
Bd7 {[%clk 00:10:39]} {[%emt 00:07:03]} 26. Qb2 {[%clk 00:19:49]} {[%emt
00:04:18]} Rda8 {[%clk 00:10:28]} {[%emt 00:00:42]} 27. Kd2 {[%clk 00:19:59]}
{[%emt 00:00:19]} f6 {[%clk 00:05:42]} {[%emt 00:05:15]} 28. Nfd3 {[%clk
00:08:01]} {[%emt 00:12:29]} Nxd3 {[%clk 00:02:41]} {[%emt 00:03:32]} 29. Nxd3
{[%clk 00:08:27]} {[%emt 00:00:03]} fxg5 {[%clk 00:03:06]} {[%emt 00:00:06]} 30.
hxg5 {[%clk 00:08:41]} {[%emt 00:00:15]} Qe7 {[%clk 00:02:45]} {[%emt
00:00:51]} 31. Rdg1 {[%clk 00:07:30]} {[%emt 00:01:40]} Ra2 {[%clk 00:02:47]}
{[%emt 00:00:30]} 32. Qc3 {[%clk 00:07:30]} {[%emt 00:00:29]} Rf8 {[%clk
00:02:30]} {[%emt 00:00:48]} 33. Nc1 {[%clk 00:06:14]} {[%emt 00:01:45]} Raa8
{[%clk 00:02:38]} {[%emt 00:00:22]} 34. Be2 {[%clk 00:06:17]} {[%emt 00:00:27]}
Qf7 {[%clk 00:00:52]} {[%emt 00:02:17]} 35. Qe3 {[%clk 00:03:32]} {[%emt
00:03:13]} Rab8 {[%clk 00:00:41]} {[%emt 00:00:41]} 36. Nd3 {[%clk 00:03:01]}
{[%emt 00:01:01]} Bb5 {[%clk 00:00:59]} {[%emt 00:00:14]} 37. c4 {[%clk
00:02:49]} {[%emt 00:00:41]} Bd7 {[%clk 00:01:24]} {[%emt 00:00:05]} 38. b4
{[%clk 00:02:37]} {[%emt 00:00:42]} Ra8 {[%clk 00:01:43]} {[%emt 00:00:12]} 39.
Ra1 {[%clk 00:02:52]} {[%emt 00:00:14]} Rfb8 {[%clk 00:00:46]} {[%emt
00:01:26]} 40. Ra7 {[%clk 00:02:14]} {[%emt 00:01:08]} Rc8 {[%clk 00:00:33]}
{[%emt 00:00:45]} 41. Rf1 {[%clk 00:26:31]} {[%emt 00:06:12]} Rxa7 {[%clk
00:26:28]} {[%emt 00:04:36]} 42. Qxa7 {[%clk 00:26:59]} {[%emt 00:00:02]} Qe7
{[%clk 00:26:48]} {[%emt 00:00:09]} 43. Rg1 {[%clk 00:25:39]} {[%emt 00:01:50]}
Qd8 {[%clk 00:26:34]} {[%emt 00:00:44]} 44. Qe3 {[%clk 00:18:41]} {[%emt
00:07:26]} 1/2-1/2

[Event "Masters Tournament (MTO)"]
[Site "Biel, Switzerland"]
[Date "2026.07.21"]
[Round "8.43"]
[White "Tan, Jimmy"]
[Black "Rosen, Noah"]
[Result "1-0"]
[TimeControl "100+30+30sec/move"]
[WhiteTitle "-"]
[BlackTitle "-"]
[WhiteFideId "129057499"]
[BlackFideId "1356267"]
[WhiteElo "1953"]
[BlackElo "1921"]

1. d4 {[%clk 01:40:50]} {[%emt 00:00:10]} Nf6 {[%clk 01:40:51]} {[%emt
00:00:08]} 2. Nc3 {[%clk 01:40:43]} {[%emt 00:00:39]} d5 {[%clk 01:41:07]}
{[%emt 00:00:13]} 3. Bf4 {[%clk 01:41:08]} {[%emt 00:00:05]} g6 {[%clk
01:41:29]} {[%emt 00:00:08]} 4. e3 {[%clk 01:41:32]} {[%emt 00:00:07]} Bg7
{[%clk 01:41:45]} {[%emt 00:00:13]} 5. Nb5 {[%clk 01:41:42]} {[%emt 00:00:21]}
Na6 {[%clk 01:41:35]} {[%emt 00:00:39]} 6. h3 {[%clk 01:42:06]} {[%emt
00:00:07]} c6 {[%clk 01:40:58]} {[%emt 00:01:07]} 7. Nc3 {[%clk 01:42:31]}
{[%emt 00:00:05]} b5 {[%clk 01:40:34]} {[%emt 00:00:54]} 8. Nf3 {[%clk
01:35:24]} {[%emt 00:07:37]} Bf5 {[%clk 01:30:40]} {[%emt 00:10:23]} 9. Bd3
{[%clk 01:22:41]} {[%emt 00:13:14]} Ne4 {[%clk 01:25:46]} {[%emt 00:05:23]} 10.
Bxe4 {[%clk 01:19:06]} {[%emt 00:04:06]} dxe4 {[%clk 01:24:54]} {[%emt
00:01:22]} 11. Nd2 {[%clk 01:17:02]} {[%emt 00:02:33]} Qa5 {[%clk 01:20:15]}
{[%emt 00:05:09]} 12. O-O {[%clk 01:16:06]} {[%emt 00:01:27]} Rd8 {[%clk
01:15:15]} {[%emt 00:05:29]} 13. Qe2 {[%clk 01:12:20]} {[%emt 00:04:16]} O-O
{[%clk 01:08:34]} {[%emt 00:07:11]} 14. a4 {[%clk 01:07:58]} {[%emt 00:04:53]}
b4 {[%clk 01:06:44]} {[%emt 00:02:20]} 15. Nc4 {[%clk 01:08:12]} {[%emt
00:00:16]} Bg4 {[%clk 01:04:18]} {[%emt 00:02:55]} 16. hxg4 {[%clk 01:08:31]}
{[%emt 00:00:12]} 1-0

[Event "Masters Tournament (MTO)"]
[Site "Biel, Switzerland"]
[Date "2026.07.21"]
[Round "8.44"]
[White "Vedant, Nayudu"]
[Black "Alsaleh, Eissa"]
[Result "0-1"]
[TimeControl "100+30+30sec/move"]
[WhiteTitle "-"]
[BlackTitle "-"]
[WhiteFideId "33369780"]
[BlackFideId "10312463"]
[WhiteElo "1797"]
[BlackElo "1908"]

1. e4 {[%clk 01:36:41]} {[%emt 00:04:18]} e5 {[%clk 01:40:53]} {[%emt
00:00:07]} 2. Nf3 {[%clk 01:36:59]} {[%emt 00:00:13]} Nc6 {[%clk 01:41:17]}
{[%emt 00:00:07]} 3. Bc4 {[%clk 01:37:21]} {[%emt 00:00:07]} Bc5 {[%clk
01:41:35]} {[%emt 00:00:12]} 4. c3 {[%clk 01:37:40]} {[%emt 00:00:11]} d6
{[%clk 01:39:06]} {[%emt 00:02:59]} 5. d3 {[%clk 01:34:36]} {[%emt 00:03:35]}
h6 {[%clk 01:38:39]} {[%emt 00:00:56]} 6. O-O {[%clk 01:33:29]} {[%emt
00:01:37]} Nf6 {[%clk 01:38:05]} {[%emt 00:01:03]} 7. Nbd2 {[%clk 01:33:27]}
{[%emt 00:00:33]} O-O {[%clk 01:37:09]} {[%emt 00:01:26]} 8. Bb3 {[%clk
01:30:54]} {[%emt 00:03:02]} Be6 {[%clk 01:34:31]} {[%emt 00:03:08]} 9. Re1
{[%clk 01:30:53]} {[%emt 00:00:32]} Bb6 {[%clk 01:32:11]} {[%emt 00:02:51]} 10.
Bxe6 {[%clk 01:25:06]} {[%emt 00:06:16]} fxe6 {[%clk 01:32:13]} {[%emt
00:00:27]} 11. Nc4 {[%clk 01:24:33]} {[%emt 00:01:04]} Ne7 {[%clk 01:30:27]}
{[%emt 00:02:15]} 12. Qb3 {[%clk 01:19:30]} {[%emt 00:05:34]} Qd7 {[%clk
01:28:19]} {[%emt 00:02:38]} 13. a4 {[%clk 01:16:01]} {[%emt 00:04:01]} c5
{[%clk 01:22:10]} {[%emt 00:06:38]} 14. a5 {[%clk 01:02:10]} {[%emt 00:14:21]}
Bd8 {[%clk 01:20:52]} {[%emt 00:01:47]} 15. Bd2 {[%clk 00:50:02]} {[%emt
00:12:38]} Ng6 {[%clk 01:18:45]} {[%emt 00:02:37]} 16. a6 {[%clk 00:47:52]}
{[%emt 00:02:41]} b6 {[%clk 01:16:26]} {[%emt 00:02:48]} 17. Na3 {[%clk
00:39:40]} {[%emt 00:08:43]} Nh5 {[%clk 01:13:53]} {[%emt 00:03:02]} 18. d4
{[%clk 00:34:59]} {[%emt 00:05:12]} exd4 {[%clk 01:01:25]} {[%emt 00:12:58]} 19.
cxd4 {[%clk 00:35:05]} {[%emt 00:00:24]} Qf7 {[%clk 00:58:46]} {[%emt
00:03:08]} 20. Nb5 {[%clk 00:32:32]} {[%emt 00:03:04]} Be7 {[%clk 00:53:07]}
{[%emt 00:06:08]} 21. d5 {[%clk 00:19:54]} {[%emt 00:13:09]} Ngf4 {[%clk
00:41:39]} {[%emt 00:11:57]} 22. Nc7 {[%clk 00:11:53]} {[%emt 00:08:32]} c4
{[%clk 00:35:18]} {[%emt 00:06:50]} 23. Qe3 {[%clk 00:02:35]} {[%emt 00:09:45]}
Rac8 {[%clk 00:27:22]} {[%emt 00:08:30]} 24. Nxe6 {[%clk 00:02:49]} {[%emt
00:00:16]} Nxe6 {[%clk 00:26:51]} {[%emt 00:01:00]} 25. dxe6 {[%clk 00:03:18]}
{[%emt 00:00:02]} Qxe6 {[%clk 00:26:49]} {[%emt 00:00:32]} 26. e5 {[%clk
00:01:42]} {[%emt 00:02:06]} Nf4 {[%clk 00:24:33]} {[%emt 00:02:45]} 27. Qe4
{[%clk 00:00:32]} {[%emt 00:01:41]} d5 {[%clk 00:23:20]} {[%emt 00:01:42]} 28.
Qc2 {[%clk 00:00:32]} {[%emt 00:00:31]} Nxg2 {[%clk 00:21:52]} {[%emt
00:01:58]} 29. Kxg2 {[%clk 00:00:33]} {[%emt 00:00:28]} Qg4+ {[%clk 00:22:12]}
{[%emt 00:00:10]} 30. Kf1 {[%clk 00:00:59]} {[%emt 00:00:05]} Qxf3 {[%clk
00:21:41]} {[%emt 00:01:01]} 31. Be3 {[%clk 00:00:56]} {[%emt 00:00:33]} Bb4
{[%clk 00:20:56]} {[%emt 00:01:14]} 32. Qd1 {[%clk 00:00:32]} {[%emt 00:00:55]}
Qh3+ {[%clk 00:17:17]} {[%emt 00:04:08]} 33. Ke2 {[%clk 00:00:33]} {[%emt
00:00:29]} Qf3+ {[%clk 00:17:02]} {[%emt 00:00:44]} 34. Kf1 {[%clk 00:01:01]}
{[%emt 00:00:04]} Bxe1 {[%clk 00:17:04]} {[%emt 00:00:28]} 35. Qxf3 {[%clk
00:01:06]} {[%emt 00:00:25]} Rxf3 {[%clk 00:17:04]} {[%emt 00:00:29]} 36. Rxe1
{[%clk 00:00:33]} {[%emt 00:01:04]} Re8 {[%clk 00:13:38]} {[%emt 00:03:56]} 37.
Bd4 {[%clk 00:00:36]} {[%emt 00:00:26]} Rf4 {[%clk 00:13:03]} {[%emt 00:01:04]}
38. Rd1 {[%clk 00:00:33]} {[%emt 00:00:35]} Rd8 {[%clk 00:11:44]} {[%emt
00:01:47]} 39. Ke2 {[%clk 00:00:31]} {[%emt 00:00:34]} Rh4 {[%clk 00:10:51]}
{[%emt 00:01:21]} 40. Kf3 {[%clk 00:00:31]} {[%emt 00:00:32]} Rxh2 {[%clk
00:09:18]} {[%emt 00:02:00]} 41. Kg4 {[%clk 00:17:37]} {[%emt 00:13:25]} Rg2+
{[%clk 00:36:45]} {[%emt 00:03:03]} 42. Kf5 {[%clk 00:10:19]} {[%emt 00:07:49]}
Rf8+ {[%clk 00:34:45]} {[%emt 00:02:30]} 43. Ke6 {[%clk 00:10:36]} {[%emt
00:00:14]} Rg6+ {[%clk 00:34:51]} {[%emt 00:00:23]} 44. Kxd5 {[%clk 00:10:58]}
{[%emt 00:00:09]} b5 {[%clk 00:32:58]} {[%emt 00:02:23]} 45. Bc5 {[%clk
00:03:35]} {[%emt 00:07:52]} Rd8+ {[%clk 00:31:16]} {[%emt 00:02:11]} 46. Bd6
{[%clk 00:04:04]} {[%emt 00:00:02]} Kf7 {[%clk 00:24:16]} {[%emt 00:07:30]} 47.
Kc5 {[%clk 00:02:40]} {[%emt 00:01:55]} Rg5 {[%clk 00:17:47]} {[%emt 00:06:57]}
48. Re1 {[%clk 00:02:00]} {[%emt 00:01:11]} Ke6 {[%clk 00:16:45]} {[%emt
00:01:32]} 49. Kc6 {[%clk 00:01:09]} {[%emt 00:01:22]} Rf5 {[%clk 00:10:12]}
{[%emt 00:07:02]} 50. Re2 {[%clk 00:00:32]} {[%emt 00:01:07]} Rd7 {[%clk
00:08:54]} {[%emt 00:01:35]} 51. Rc2 {[%clk 00:00:32]} {[%emt 00:00:43]} h5
{[%clk 00:07:48]} {[%emt 00:01:36]} 52. Re2 {[%clk 00:00:33]} {[%emt 00:00:30]}
h4 {[%clk 00:07:08]} {[%emt 00:01:10]} 53. Re4 {[%clk 00:00:34]} {[%emt
00:00:28]} g5 {[%clk 00:07:09]} {[%emt 00:00:29]} 54. Rg4 {[%clk 00:00:41]}
{[%emt 00:00:23]} h3 {[%clk 00:04:06]} {[%emt 00:03:33]} 55. Rg3 {[%clk
00:00:34]} {[%emt 00:00:37]} Rh7 {[%clk 00:04:23]} {[%emt 00:00:13]} 56. Rg1
{[%clk 00:00:31]} {[%emt 00:00:33]} h2 {[%clk 00:04:22]} {[%emt 00:00:31]} 57.
Rh1 {[%clk 00:00:33]} {[%emt 00:00:28]} Rxf2 {[%clk 00:04:34]} {[%emt
00:00:17]} 58. Bc5 {[%clk 00:00:40]} {[%emt 00:00:24]} Rxb2 {[%clk 00:04:13]}
{[%emt 00:00:52]} 59. Be3 {[%clk 00:00:35]} {[%emt 00:00:33]} g4 {[%clk
00:03:45]} {[%emt 00:00:59]} 60. Bf4 {[%clk 00:00:37]} {[%emt 00:00:28]} Rg2
{[%clk 00:03:22]} {[%emt 00:00:52]} 61. Kxb5 {[%clk 00:00:38]} {[%emt
00:00:29]} g3 {[%clk 00:03:09]} {[%emt 00:00:44]} 62. Be3 {[%clk 00:00:35]}
{[%emt 00:00:33]} c3 {[%clk 00:02:10]} {[%emt 00:01:30]} 0-1

[Event "Masters Tournament (MTO)"]
[Site "Biel, Switzerland"]
[Date "2026.07.21"]
[Round "8.45"]
[White "Simon, Ralf-Axel"]
[Black "Oestmann, Lukas"]
[Result "0-1"]
[TimeControl "100+30+30sec/move"]
[WhiteTitle "-"]
[BlackTitle "-"]
[WhiteFideId "4603125"]
[BlackFideId "1326457"]
[WhiteElo "1935"]
[BlackElo "1998"]

1. d4 {[%clk 01:40:47]} {[%emt 00:00:11]} Nf6 {[%clk 01:40:57]} {[%emt
00:00:04]} 2. Nf3 {[%clk 01:36:22]} {[%emt 00:04:54]} c5 {[%clk 01:41:17]}
{[%emt 00:00:10]} 3. d5 {[%clk 01:32:56]} {[%emt 00:03:56]} e6 {[%clk
01:41:41]} {[%emt 00:00:06]} 4. Nc3 {[%clk 01:31:54]} {[%emt 00:01:33]} exd5
{[%clk 01:41:57]} {[%emt 00:00:14]} 5. Nxd5 {[%clk 01:31:36]} {[%emt 00:00:47]}
Nxd5 {[%clk 01:41:44]} {[%emt 00:00:43]} 6. Qxd5 {[%clk 01:32:01]} {[%emt
00:00:06]} Nc6 {[%clk 01:41:44]} {[%emt 00:00:30]} 7. Bg5 {[%clk 00:55:37]}
{[%emt 00:36:53]} Qc7 {[%clk 01:35:09]} {[%emt 00:07:05]} 8. O-O-O {[%clk
00:45:48]} {[%emt 00:10:19]} d6 {[%clk 01:16:40]} {[%emt 00:19:00]} 9. Kb1
{[%clk 00:16:48]} {[%emt 00:29:30]} Be6 {[%clk 01:13:30]} {[%emt 00:03:39]} 10.
Qd3 {[%clk 00:17:03]} {[%emt 00:00:16]} Bxa2+ {[%clk 01:11:00]} {[%emt
00:03:00]} 11. Kc1 {[%clk 00:17:03]} {[%emt 00:00:28]} Be6 {[%clk 01:09:20]}
{[%emt 00:02:11]} 12. e4 {[%clk 00:17:15]} {[%emt 00:00:18]} h6 {[%clk
01:06:23]} {[%emt 00:03:27]} 13. Bf4 {[%clk 00:17:03]} {[%emt 00:00:42]} O-O-O
{[%clk 01:03:17]} {[%emt 00:09:35]} 14. Qa3 {[%clk 00:13:39]} {[%emt 00:02:33]}
Qb6 {[%clk 01:01:01]} {[%emt 00:02:45]} 15. h4 {[%clk 00:06:10]} {[%emt
00:08:00]} Be7 {[%clk 00:59:10]} {[%emt 00:02:21]} 16. Nd2 {[%clk 00:04:19]}
{[%emt 00:02:21]} Na5 {[%clk 00:54:15]} {[%emt 00:05:24]} 17. h5 {[%clk
00:02:05]} {[%emt 00:02:44]} Rhe8 {[%clk 00:54:06]} {[%emt 00:00:39]} 18. f3
{[%clk 00:00:55]} {[%emt 00:01:41]} Kb8 {[%clk 00:52:30]} {[%emt 00:02:07]} 19.
g4 {[%clk 00:01:19]} {[%emt 00:00:05]} Ka8 {[%clk 00:52:07]} {[%emt 00:00:54]}
20. Kb1 {[%clk 00:01:18]} {[%emt 00:00:31]} d5 {[%clk 00:45:58]} {[%emt
00:06:39]} 21. e5 {[%clk 00:00:46]} {[%emt 00:01:02]} c4 {[%clk 00:45:46]}
{[%emt 00:00:41]} 22. Qa2 {[%clk 00:00:50]} {[%emt 00:00:27]} Rc8 {[%clk
00:42:28]} {[%emt 00:03:47]} 23. c3 {[%clk 00:01:11]} {[%emt 00:00:09]} d4
{[%clk 00:41:53]} {[%emt 00:01:05]} 24. Rg1 {[%clk 00:00:43]} {[%emt 00:00:57]}
dxc3 {[%clk 00:40:16]} {[%emt 00:02:08]} 25. Ne4 {[%clk 00:00:43]} {[%emt
00:00:30]} cxb2 {[%clk 00:39:28]} {[%emt 00:01:18]} 26. Rg2 {[%clk 00:00:42]}
{[%emt 00:00:31]} c3 {[%clk 00:37:50]} {[%emt 00:02:08]} 27. Qa4 {[%clk
00:01:02]} {[%emt 00:00:10]} Bb3 {[%clk 00:37:41]} {[%emt 00:00:39]} 0-1